fUSD/lending_fUSD_20260419
["ID","MTS","AMOUNT","RATE_DAILY","PERIOD"]
[420832776,1776604243065,-36.55587833,0.000119,2]
[420832777,1776604243075,-9140.72765463,0.000119,2]
[420832778,1776604243089,-4753.6258308,0.000119,2]
[420832824,1776604258149,1000.0,0.00027397,120]
[420832825,1776604268360,3172.670484,7.945e-05,2]
[420832826,1776604293870,1000.0,0.00032877,120]
[420832827,1776604300031,1000.0,0.00032877,120]
[420832828,1776604307208,1000.0,0.00032877,120]
[420832829,1776604310088,-286.35,0.00010868,2]
[420832830,1776604323461,1000.0,0.00032877,120]
[420832831,1776604339033,1000.0,0.00032877,120]
[420832832,1776604339714,1000.0,0.00032877,120]
[420832833,1776604357255,1000.0,0.00032877,120]
[420832834,1776604359233,260.0,9.863e-05,2]
[420832835,1776604386340,1000.0,0.00032877,120]
[420832836,1776604403113,2000.0,0.000108,2]
[420832837,1776604445776,161.0,0.0003287,120]
[420832838,1776604484114,1000.0,0.00032876,120]
[420832839,1776604517899,1000.0,0.00032876,120]
[420832840,1776604561800,177.5,0.00032876,120]
[420832841,1776604588749,156.0,0.000108,2]
[420832842,1776604612118,1000.0,0.00032877,120]
[420832843,1776604617497,156.0,0.000328,120]
[420832844,1776604620529,1000.0,0.00032877,120]
[420832845,1776604629085,1000.0,0.00032877,120]
[420832846,1776604629990,156.0,0.000328,120]
[420832847,1776604631316,1000.0,0.00032876,120]
[420832848,1776604642867,156.0,0.000328,120]
[420832849,1776604645117,1000.0,0.00032877,120]
[420832850,1776604650203,1000.0,0.00032876,120]
[420832851,1776604654002,1000.0,0.00032877,120]
[420832852,1776604679257,1000.0,0.00032877,120]
[420832853,1776604686579,1000.0,0.00032877,120]
[420832854,1776604698489,260.0,9.863e-05,2]
[420832855,1776604721223,1000.0,0.00032876,120]
[420832856,1776604749036,3234.52,0.00032877,120]
[420832857,1776604762687,260.0,9.863e-05,2]
[420832859,1776604845453,1000.0,0.00032876,120]
[420832860,1776604858690,252.544849,0.00010855,2]
[420832861,1776604869061,566.81,0.00032876,120]
[420832862,1776604945163,1200.389,0.00032877,120]
[420832863,1776604973214,151.0,0.00032876,120]
[420832864,1776605004349,6238.765151,0.0001,10]
[420832865,1776605004371,10000.01,0.0001,10]
[420832866,1776605004392,10000.01,0.0001,10]
[420832867,1776605004413,10000.01,0.0001,10]
[420832868,1776605004434,10000.01,0.0001,10]
[420832869,1776605004455,10000.01,0.0001,10]
[420832870,1776605004476,10000.01,0.0001,10]
[420832871,1776605004497,10000.01,0.0001,10]
[420832872,1776605004520,10000.01,0.0001,10]
[420832873,1776605004541,10000.01,0.0001,10]
[420832874,1776605031131,1753.053494,0.0003287,120]
[420832875,1776605052721,-5942.65120421,0.0001,10]
[420832876,1776605053468,-10000.01,0.0001,10]
[420832877,1776605065875,-1959.23570271,0.0001,10]
[420832878,1776605084047,-250.0,0.00010483,2]
[420832879,1776605086788,200.0,0.00032,120]
[420832880,1776605126269,260.0,9.863e-05,2]
[420832881,1776605163564,2000.0,0.00010512,2]
[420832883,1776605287099,5512.82096122,0.00032876,120]
[420832884,1776605298499,335.65,0.00032844,120]
[420832898,1776605432066,-150.0,0.000108,2]
[420832899,1776605432076,-1200.0,0.00010914,2]
[420832900,1776605432085,-150.0,0.00010914,2]
[420832901,1776605432095,-3897.575174,0.00010915,2]
[420832902,1776605432106,-5862.88679474,0.00010915,2]
[420832903,1776605432124,-8649.52031818,0.00010915,2]
[420832904,1776605432235,-560.4522,0.00010915,2]
[420832905,1776605432293,-10499.08113999,0.00010915,2]
[420832921,1776605438781,-1977.15710544,0.00010915,2]
[420832922,1776605438793,-896.31294914,0.00010915,2]
[420832923,1776605438824,-37873.0,0.00010915,2]
[420833266,1776605442266,-463.17396815,0.00010915,2]
[420833268,1776605442277,-9320.92035036,0.00010915,2]
[420833270,1776605442286,-640.09,0.00011,2]
[420833272,1776605442296,-640.09,0.00011,2]
[420833274,1776605442305,-100039.8515,0.00011015,2]
[420833276,1776605442315,-5090.49,0.0001107,2]
[420833278,1776605442324,-165.28,0.0001107,2]
[420833280,1776605442334,-190.35,0.00011194,2]
[420833282,1776605442343,-196.75,0.00011194,2]
[420833284,1776605442352,-212.5,0.0001136,2]
[420833286,1776605442361,-578.20924308,0.00011361,2]
[420833288,1776605442371,-166.92730576,0.00011361,2]
[420833290,1776605442380,-166.92730575,0.00011361,2]
[420833293,1776605442390,-659.81522602,0.00011361,2]
[420833294,1776605442399,-174.61919141,0.00011361,2]
[420833297,1776605442409,-185.28,0.00011386,2]
[420833298,1776605442418,-4108.2339263,0.00011413,2]
[420833299,1776605442427,-228.42,0.00011443,2]
[420833300,1776605442438,-236.1,0.00011443,2]
[420833301,1776605442447,-17402.36085363,0.00011547,2]
[420833302,1776605442456,-152.0,0.0001156,7]
[420833303,1776605442465,-152.0,0.0001156,7]
[420833304,1776605442473,-152.0,0.0001156,7]
[420833305,1776605442483,-200.0,0.00011578,2]
[420833306,1776605442492,-189.78674529,0.00011578,2]
[420833307,1776605442501,-670.58624095,0.00011578,2]
[420833308,1776605442511,-151.0,0.00011578,2]
[420833309,1776605442520,-1328.27659266,0.00011578,2]
[420833310,1776605442530,-1289.58892491,0.00011578,2]
[420833311,1776605442539,-279.9045709,0.00011578,2]
[420833312,1776605442549,-166.92730575,0.00011578,2]
[420833314,1776605442559,-167.73,0.00011584,2]
[420833315,1776605442568,-266.49,0.00011691,2]
[420833316,1776605442577,-275.45,0.00011691,2]
[420833317,1776605442586,-2473.0,0.00011698,2]
[420833318,1776605442595,-1000.0,0.00011716,2]
[420833319,1776605442605,-1000.0,0.00011718,2]
[420833320,1776605442614,-1000.0,0.0001173,2]
[420833321,1776605442623,-150.0,0.00011731,2]
[420833322,1776605442634,-1000.0,0.00011731,2]
[420833323,1776605442643,-152.0,0.00011734,7]
[420833324,1776605442652,-150.0,0.00011746,2]
[420833325,1776605442663,-1000.0,0.00011763,2]
[420833326,1776605442673,-1000.0,0.00011768,2]
[420833327,1776605442683,-150.0,0.00011769,2]
[420833328,1776605442692,-1000.0,0.00011777,2]
[420833329,1776605442702,-500.0,0.00011783,2]
[420833330,1776605442711,-500.0,0.00011783,2]
[420833331,1776605442720,-500.0,0.00011783,2]
[420833332,1776605442730,-500.0,0.00011783,2]
[420833333,1776605442739,-500.0,0.00011783,2]
[420833334,1776605442748,-500.0,0.00011783,2]
[420833335,1776605442757,-500.0,0.00011783,2]
[420833336,1776605442766,-500.0,0.00011783,2]
[420833337,1776605442776,-365.86970244,0.00011783,2]
[420833338,1776605442786,-500.0,0.00011783,2]
[420833339,1776605442795,-500.0,0.00011783,2]
[420833340,1776605442804,-500.0,0.00011783,2]
[420833341,1776605442813,-500.0,0.00011783,2]
[420833342,1776605442824,-500.0,0.00011783,2]
[420833343,1776605442833,-500.0,0.00011783,2]
[420833344,1776605442842,-500.0,0.00011783,2]
[420833345,1776605442851,-500.0,0.00011783,2]
[420833346,1776605442860,-500.0,0.00011783,2]
[420833348,1776605442870,-500.0,0.00011783,2]
[420833350,1776605442879,-500.0,0.00011783,2]
[420833352,1776605442889,-500.0,0.00011783,2]
[420833354,1776605442898,-500.0,0.00011783,2]
[420833355,1776605442907,-500.0,0.00011783,2]
[420833357,1776605442916,-500.0,0.00011783,2]
[420833358,1776605442926,-500.0,0.00011783,2]
[420833359,1776605442936,-500.0,0.00011783,2]
[420833360,1776605442946,-500.0,0.00011783,2]
[420833361,1776605442955,-500.0,0.00011783,2]
[420833362,1776605442964,-500.0,0.00011783,2]
[420833363,1776605442973,-500.0,0.00011783,2]
[420833364,1776605442983,-500.0,0.00011783,2]
[420833366,1776605442992,-500.0,0.00011783,2]
[420833367,1776605443001,-500.0,0.00011783,2]
[420833368,1776605443010,-500.0,0.00011783,2]
[420833369,1776605443020,-1751.1350076,0.00011784,2]
[420833370,1776605443029,-226.0220979,0.00011784,2]
[420833371,1776605443039,-3230.7348612,0.00011784,2]
[420833372,1776605443049,-1000.0,0.00011785,2]
[420833374,1776605443057,-150.0,0.00011799,2]
[420833375,1776605443066,-156.0,0.000118,2]
[420833379,1776605443075,-156.0,0.000118,2]
[420833381,1776605443084,-1400.0,0.000118,2]
[420833382,1776605443094,-640.09,0.000118,2]
[420833383,1776605443105,-150.0,0.00011814,2]
[420833384,1776605443114,-150.0,0.00011815,2]
[420833385,1776605443124,-157.79682147,0.00011815,2]
[420833386,1776605443134,-1000.0,0.00011817,2]
[420833387,1776605443143,-352.3932403,0.0001182,2]
[420833388,1776605443152,-1000.0,0.00011821,2]
[420833389,1776605443161,-150.0,0.00011824,2]
[420833390,1776605443170,-2000.0,0.00011826,2]
[420833392,1776605443179,-1000.0,0.0001183,2]
[420833394,1776605443188,-153.28171355,0.00011834,2]
[420833396,1776605443197,-1000.0,0.00011839,2]
[420833398,1776605443207,-262.12863495,0.00011851,2]
[420833399,1776605443217,-1000.0,0.00011854,2]
[420833400,1776605443225,-167.73,0.00011858,2]
[420833401,1776605443235,-1000.0,0.00011859,2]
[420833402,1776605443244,-1000.0,0.00011861,2]
[420833403,1776605443254,-1000.0,0.00011864,2]
[420833404,1776605443263,-260.0,0.00011867,5]
[420833405,1776605443272,-456.00491,0.0001188,2]
[420833406,1776605443281,-456.0049,0.0001188,2]
[420833407,1776605443291,-195.0,0.0001188,2]
[420833408,1776605443300,-195.0,0.0001188,2]
[420833409,1776605443309,-195.0,0.0001188,2]
[420833410,1776605443318,-2500.0,0.0001188,2]
[420833411,1776605443328,-2500.0,0.0001188,2]
[420833412,1776605443338,-2500.0,0.0001188,2]
[420833413,1776605443347,-2500.0,0.0001188,2]
[420833414,1776605443356,-2500.0,0.0001188,2]
[420833415,1776605443365,-195.0,0.0001188,2]
[420833416,1776605443375,-195.0,0.0001188,2]
[420833417,1776605443384,-600.0,0.0001188,2]
[420833418,1776605443393,-600.0,0.0001188,2]
[420833419,1776605443403,-600.0,0.0001188,2]
[420833420,1776605443412,-600.0,0.0001188,2]
[420833421,1776605443421,-600.0,0.0001188,2]
[420833422,1776605443429,-250.0,0.0001188,2]
[420833423,1776605443439,-300.0,0.0001188,2]
[420833424,1776605443448,-456.00491,0.0001189,2]
[420833425,1776605443457,-1000.0,0.000119,2]
[420833426,1776605443467,-230.276631,0.000119,2]
[420833427,1776605443476,-1000.0,0.000119,2]
[420833428,1776605443486,-151.0,0.000119,2]
[420833429,1776605443496,-151.0,0.000119,2]
[420833430,1776605443505,-5000.0,0.000119,2]
[420833431,1776605443514,-151.0,0.000119,2]
[420833432,1776605443523,-263.93494,0.000119,2]
[420833433,1776605443532,-527.659193,0.000119,2]
[420833434,1776605443542,-527.659193,0.000119,2]
[420833435,1776605443552,-527.659193,0.000119,2]
[420833436,1776605443562,-527.659193,0.000119,2]
[420833437,1776605443572,-151.0,0.000119,2]
[420833438,1776605443582,-8226.65488914,0.000119,2]
[420833439,1776605443592,-207.97368796,0.000119,2]
[420833440,1776605443602,-6650.60017546,0.000119,2]
[420833441,1776605443613,-200.0,0.00011904,2]
[420833442,1776605443622,-456.0049,0.0001191,2]
[420833443,1776605443632,-150.0,0.00011916,2]
[420833444,1776605443642,-1000.0,0.00011917,2]
[420833445,1776605443650,-250.0,0.00011918,2]
[420833446,1776605443659,-250.0,0.00011918,2]
[420833447,1776605443669,-250.0,0.00011918,2]
[420833448,1776605443678,-400.0,0.00011918,2]
[420833449,1776605443688,-151.0,0.00011918,2]
[420833450,1776605443698,-150.0,0.0001192,2]
[420833451,1776605443708,-1000.0,0.00011921,2]
[420833452,1776605443717,-150.0,0.00011922,2]
[420833453,1776605443727,-165.03,0.00011922,2]
[420833455,1776605443736,-1000.0,0.00011931,2]
[420833457,1776605443746,-1000.0,0.00011935,2]
[420833459,1776605443755,-1000.0,0.00011937,2]
[420833461,1776605443764,-1000.0,0.00011939,2]
[420833463,1776605443774,-255.0,0.00011951,2]
[420833465,1776605443782,-1000.0,0.00011967,2]
[420833467,1776605443792,-1000.0,0.00011969,2]
[420833469,1776605443801,-448.531527,0.00011973,2]
[420833471,1776605443810,-448.531527,0.00011973,2]
[420833472,1776605443820,-448.531527,0.00011973,2]
[420833473,1776605443829,-448.531527,0.00011973,2]
[420833474,1776605443839,-160.18436767,0.00011973,2]
[420833475,1776605443848,-150.0,0.0001198,2]
[420833476,1776605443858,-150.01,0.00011988,2]
[420833477,1776605443870,-150.0,0.00011988,2]
[420833478,1776605443879,-161.0,0.0001199,2]
[420833479,1776605443889,-165.0,0.0001199,2]
[420833480,1776605443898,-185.02215364,0.00011999,2]
[420833481,1776605443908,-500.0,0.00011999,2]
[420833482,1776605443917,-506.03661066,0.00011999,2]
[420833483,1776605443928,-500.0,0.00011999,2]
[420833484,1776605443937,-500.0,0.00011999,2]
[420833485,1776605443947,-500.0,0.00011999,2]
[420833486,1776605443956,-260.99789674,0.00011999,2]
[420833487,1776605443965,-500.0,0.00011999,2]
[420833488,1776605443975,-500.0,0.00011999,2]
[420833489,1776605443985,-334.41760597,0.00011999,2]
[420833490,1776605443994,-324.0,0.00012,5]
[420833491,1776605444003,-150.0,0.00012,5]
[420833492,1776605444012,-345313.17520558,0.00012,2]
[420833493,1776605444033,-834.152,0.00012,2]
[420833494,1776605445134,-758.63505259,0.00012,2]
[420833497,1776605446100,-222.6501121,0.0001199,2]
[420833498,1776605446110,-266979.14704398,0.00012,2]
[420833499,1776605446121,-946.65274269,0.00012,2]
[420833500,1776605446250,-155115.63288707,0.00012,2]
[420833501,1776605446263,-126217.85614935,0.00012,2]
[420833502,1776605446272,-74787.34626209,0.00012,2]
[420833503,1776605446483,-3328.55844629,0.00012,2]
[420833586,1776605489042,260.0,9.863e-05,2]
[420833587,1776605624729,260.0,9.863e-05,2]
[420833588,1776605636489,242.32,0.00032876,120]
[420833589,1776605645913,522.13,0.00032876,120]
[420833590,1776605659727,250.0,0.00032849,120]
[420833591,1776605672523,250.0,0.00032849,120]
[420833592,1776605685634,250.0,0.00032849,120]
[420833593,1776605726612,579.89767228,8.982e-05,2]
[420833594,1776605738986,250.0,0.00032849,120]
[420833595,1776605750138,250.0,0.00032849,120]
[420833596,1776605801379,346.0,0.000328,120]
[420833597,1776605847584,250.0,0.00032849,120]
[420833598,1776605856911,250.0,0.00032849,120]
[420833599,1776605867221,250.0,0.00032849,120]
[420833600,1776605881762,250.0,0.00032849,120]
[420833601,1776605888913,5327.5,0.0003287,120]
[420833602,1776605889389,260.0,9.863e-05,2]
[420833603,1776605893296,250.0,0.00032849,120]
[420833604,1776605923138,2000.0,0.00032876,120]
[420833605,1776605928080,250.0,0.00032849,120]
[420833606,1776605938626,250.0,0.00032849,120]
[420833607,1776605942754,858.00925184,0.00032877,120]
[420833608,1776605951694,250.0,0.00032849,120]
[420833609,1776605982382,250.0,0.00032849,120]
[420833610,1776605984376,500.0,0.00032877,120]
[420833611,1776605990700,500.0,0.00032877,120]
[420833613,1776606001448,9022.74,0.00032877,120]
[420833614,1776606040673,530.05,0.0003,120]
[420833615,1776606096548,217.0,0.0003276,120]
[420833616,1776606143744,1567.08,0.000325,120]
[420833617,1776606147070,250.0,0.00032849,120]
[420833618,1776606155261,1567.08,0.000325,120]
[420833619,1776606157298,250.0,0.00032849,120]
[420833620,1776606162406,1567.08,0.000325,120]
[420833621,1776606167170,250.0,0.00032849,120]
[420833622,1776606174734,1567.08,0.000325,120]
[420833623,1776606180958,1567.08,0.000325,120]
[420833624,1776606185979,1567.08,0.000325,120]
[420833625,1776606191859,1567.08,0.000325,120]
[420833626,1776606197288,1567.08,0.000325,120]
[420833627,1776606205619,1567.08,0.000325,120]
[420833628,1776606208548,-8533.54110244,0.00010758,2]
[420833629,1776606209049,1567.08,0.000325,120]
[420833630,1776606218925,1567.08,0.000325,120]
[420833631,1776606220602,-10000.01,0.00010758,2]
[420833632,1776606221272,1000.0,0.00032877,120]
[420833633,1776606222168,1567.08,0.000325,120]
[420833634,1776606231196,1567.08,0.000325,120]
[420833635,1776606236792,-260.0,9.863e-05,2]
[420833636,1776606236820,-800.06889756,0.00010758,2]
[420833637,1776606239661,1567.08,0.000325,120]
[420833638,1776606245012,1567.08,0.000325,120]
[420833639,1776606251757,1567.08,0.000325,120]
[420833640,1776606257780,1567.08,0.000325,120]
[420833642,1776606263533,1567.08,0.000325,120]
[420833643,1776606269837,1567.08,0.000325,120]
[420833644,1776606281929,1779.91,0.00010731,2]
[420833645,1776606309990,1567.08,0.000325,120]
[420833646,1776606315513,1567.08,0.000325,120]
[420833647,1776606322618,1567.08,0.000325,120]
[420833648,1776606327933,1567.08,0.000325,120]
[420833649,1776606334293,1567.08,0.000325,120]
[420833650,1776606338925,1567.08,0.000325,120]
[420833651,1776606345995,1567.08,0.000325,120]
[420833652,1776606352233,1567.08,0.000325,120]
[420833653,1776606358292,1567.08,0.000325,120]
[420833654,1776606362890,1567.08,0.000325,120]
[420833655,1776606366515,3277.96,0.00010486,2]
[420833656,1776606371255,1567.08,0.000325,120]
[420833657,1776606378939,1567.08,0.000325,120]
[420833658,1776606384534,1567.08,0.000325,120]
[420833659,1776606389700,1567.09,0.000325,120]
[420833660,1776606396987,1038.38,0.000325,120]
[420833661,1776606403056,1567.08,0.000325,120]
[420833662,1776606457027,158.25,0.00010486,2]
[420833663,1776606503579,17200.0,0.00032876,120]
[420833664,1776606510400,260.0,9.863e-05,2]
[420833665,1776606527190,282.4,0.00012,120]
[420833666,1776606538883,500.0,0.00010688,2]
[420833667,1776606554573,175.76,0.00010515,2]
[420833668,1776606592972,260.0,9.863e-05,2]
[420833669,1776606607889,-1600.0,0.00010788,2]
[420833670,1776606607926,-250.0,0.00010805,2]
[420833671,1776606608443,-2137.7215,0.00010815,2]
[420833672,1776606608744,-2024.567,0.00010815,2]
[420833673,1776606608780,-312.16678863,0.0001085,2]
[420833674,1776606608815,-1192.7,0.00010857,2]
[420833675,1776606608918,-4823.02384246,0.000109,2]
[420833676,1776606610954,-353.96231508,0.000109,2]
[420833677,1776606610993,-300.0,0.00010908,2]
[420833678,1776606611032,-686.0,0.00010908,2]
[420833679,1776606611070,-300.0,0.00010908,2]
[420833680,1776606611110,-500.0,0.00010909,2]
[420833681,1776606611148,-500.0,0.00010909,2]
[420833682,1776606611204,-151.0,0.00010909,2]
[420833683,1776606611258,-500.0,0.00010909,2]
[420833684,1776606611303,-151.0,0.00010909,2]
[420833685,1776606611345,-500.0,0.00010909,2]
[420833686,1776606611405,-151.0,0.00010909,2]
[420833687,1776606611442,-500.0,0.00010909,2]
[420833688,1776606611478,-151.0,0.00010909,2]
[420833689,1776606611521,-12.08536984,0.00010909,2]
[420833690,1776606613825,-487.91463016,0.00010909,2]
[420833691,1776606613858,-151.0,0.00010909,2]
[420833692,1776606613889,-500.0,0.00010909,2]
[420833693,1776606613921,-151.0,0.00010909,2]
[420833694,1776606613952,-500.0,0.00010909,2]
[420833695,1776606613985,-151.0,0.00010909,2]
[420833696,1776606614019,-500.0,0.00010909,2]
[420833697,1776606614052,-151.0,0.00010909,2]
[420833698,1776606614083,-395.24826756,0.00010909,2]
[420833699,1776606614115,-151.0,0.00010909,2]
[420833700,1776606614147,-151.0,0.00010909,2]
[420833701,1776606614180,-151.0,0.00010909,2]
[420833702,1776606614212,-151.0,0.00010909,2]
[420833703,1776606614246,-154.96599412,0.00010909,2]
[420833704,1776606614278,-500.0,0.00010909,2]
[420833705,1776606614310,-500.0,0.00010909,2]
[420833706,1776606614345,-7.75221632,0.00010909,2]
[420833707,1776606615381,-492.24778368,0.00010909,2]
[420833708,1776606615413,-151.37857925,0.00010909,2]
[420833709,1776606615445,-500.0,0.00010909,2]
[420833710,1776606615475,-381.2686437,0.00010909,2]
[420833711,1776606615508,-1289.58892491,0.00010909,2]
[420833712,1776606615539,-151.0,0.00010912,2]
[420833713,1776606615569,-150.0,0.00010913,2]
[420833714,1776606618090,-4699.8752602,0.00010914,2]
[420833715,1776606618122,-100.2594796,0.00010914,2]
[420833716,1776606618511,-399.7405204,0.00010914,2]
[420833717,1776606618545,-500.0,0.00010914,2]
[420833718,1776606618577,-500.0,0.00010914,2]
[420833719,1776606618610,-500.0,0.00010914,2]
[420833720,1776606618642,-500.0,0.00010914,2]
[420833721,1776606618674,-500.0,0.00010914,2]
[420833722,1776606618706,-500.0,0.00010914,2]
[420833723,1776606618737,-500.0,0.00010914,2]
[420833724,1776606618768,-500.0,0.00010914,2]
[420833725,1776606618800,-500.0,0.00010914,2]
[420833726,1776606619713,-56.73680898,0.00010914,2]
[420833727,1776606619732,-443.26319102,0.00010914,2]
[420833728,1776606619741,-56.73680898,0.00010914,2]
[420833729,1776606619759,-443.26319102,0.00010914,2]
[420833730,1776606619769,-56.73680898,0.00010914,2]
[420833731,1776606619795,-443.26319102,0.00010914,2]
[420833732,1776606619804,-56.73680898,0.00010914,2]
[420833733,1776606619828,-443.26319102,0.00010914,2]
[420833734,1776606619837,-56.73680898,0.00010914,2]
[420833735,1776606619853,-443.26319102,0.00010914,2]
[420833736,1776606619862,-56.73680898,0.00010914,2]
[420833737,1776606619888,-443.26319102,0.00010914,2]
[420833738,1776606619898,-56.73680898,0.00010914,2]
[420833739,1776606619914,-443.26319102,0.00010914,2]
[420833740,1776606619924,-56.73680898,0.00010914,2]
[420833741,1776606619943,-284.85476951,0.00010914,2]
[420833742,1776606619954,-215.14523049,0.00010914,2]
[420833743,1776606619969,-200.5289592,0.00010914,2]
[420833744,1776606631829,150.0,0.00031193,120]
[420833749,1776606632305,-97492.24558737,0.00010815,2]
[420833750,1776606632317,-3579.0381034,0.00010815,2]
[420833751,1776606632366,1513.0,0.00032877,120]
[420833752,1776606632395,-190690.75520923,0.00010815,2]
[420833753,1776606632404,-84.32581031,0.00010914,2]
[420833754,1776606632414,-500.0,0.00010914,2]
[420833755,1776606632424,-500.0,0.00010914,2]
[420833756,1776606632434,-500.0,0.00010914,2]
[420833757,1776606632444,-500.0,0.00010914,2]
[420833758,1776606632455,-500.0,0.00010914,2]
[420833759,1776606632464,-500.0,0.00010914,2]
[420833760,1776606632474,-500.0,0.00010914,2]
[420833761,1776606632484,-500.0,0.00010914,2]
[420833762,1776606632493,-500.0,0.00010914,2]
[420833763,1776606632503,-500.0,0.00010914,2]
[420833764,1776606632512,-500.0,0.00010914,2]
[420833765,1776606632522,-500.0,0.00010914,2]
[420833766,1776606632532,-500.0,0.00010914,2]
[420833767,1776606632541,-500.0,0.00010914,2]
[420833768,1776606632551,-500.0,0.00010914,2]
[420833769,1776606632561,-500.0,0.00010914,2]
[420833770,1776606632570,-500.0,0.00010914,2]
[420833771,1776606632580,-650.0,0.00010914,2]
[420833772,1776606632589,-3240.0,0.00010959,2]
[420833773,1776606632599,-150.0,0.00010959,2]
[420833774,1776606632608,-87977.38682673,0.00011,2]
[420833775,1776606632618,-10404.34127937,0.00011174,2]
[420833776,1776606632627,-17648.53848342,0.00011258,2]
[420833777,1776606632637,-1238.75408995,0.00011358,2]
[420833778,1776606632647,-670.58624095,0.00011358,2]
[420833779,1776606632656,-1337.30371513,0.00011457,2]
[420833780,1776606632666,-1000.0,0.00011485,2]
[420833781,1776606632675,-217.16618198,0.00011558,2]
[420833782,1776606632685,-1000.0,0.00011627,2]
[420833783,1776606632695,-333.99439082,0.00011671,2]
[420833784,1776606632705,-500.0,0.000117,4]
[420833785,1776606632714,-1000.0,0.00011733,2]
[420833786,1776606632723,-300.0,0.00011736,2]
[420833787,1776606632733,-1000.0,0.00011739,2]
[420833788,1776606632743,-221.49101707,0.00011743,2]
[420833789,1776606632752,-150.0,0.00011753,2]
[420833790,1776606632761,-160.0,0.0001176,2]
[420833791,1776606632777,-246.355276,0.0001176,2]
[420833792,1776606632788,-332.710553,0.0001176,2]
[420833793,1776606632797,-160.0,0.0001176,2]
[420833794,1776606632807,-468.915415,0.0001176,2]
[420833795,1776606632816,-777.83083,0.0001176,2]
[420833796,1776606632826,-1000.0,0.00011766,2]
[420833797,1776606632836,-1000.0,0.00011767,2]
[420833798,1776606632846,-1000.0,0.00011771,2]
[420833799,1776606632856,-1000.0,0.00011772,2]
[420833800,1776606632865,-1000.0,0.0001178,2]
[420833801,1776606632875,-1000.0,0.00011781,2]
[420833802,1776606632885,-150.0,0.00011782,2]
[420833803,1776606632895,-1000.0,0.00011787,2]
[420833804,1776606632905,-1000.0,0.00011787,2]
[420833805,1776606632915,-465.58875719,0.00011794,2]
[420833806,1776606632924,-1000.0,0.00011796,2]
[420833807,1776606632934,-430.67697764,0.00011797,2]
[420833808,1776606632945,-1000.0,0.000118,4]
[420833809,1776606632955,-151.0,0.000118,2]
[420833810,1776606632964,-2311.652,0.00011808,2]
[420833811,1776606632974,-416.0,0.00011808,2]
[420833812,1776606632984,-2473.0,0.00011808,2]
[420833813,1776606632994,-150.0,0.0001181,2]
[420833814,1776606633003,-1000.0,0.00011813,2]
[420833815,1776606633013,-1000.0,0.00011817,2]
[420833816,1776606633023,-1000.0,0.00011817,2]
[420833817,1776606633032,-1000.0,0.00011819,2]
[420833818,1776606633041,-1000.0,0.00011828,2]
[420833819,1776606633051,-1000.0,0.00011829,2]
[420833820,1776606633060,-1000.0,0.00011841,2]
[420833821,1776606633070,-1000.0,0.00011845,2]
[420833822,1776606633080,-1000.0,0.00011846,2]
[420833823,1776606633089,-1000.0,0.00011848,2]